Cogmind - Beta 17 *** ADVENTURER MODE // 2026.07.22 @ 13:37:30 Player: smidge Result: Self-destructed Performance ------------- Evolutions (5) 2500 Regions Visited (9) 1800 Robots Destroyed (62) 310 Value Destroyed (1640) 1640 Prototype IDs (4) 80 Alien Tech Used (0) 0 Bonus (0) 0 TOTAL SCORE: 6330 Bonus ------- None Cogmind --------- Core Integrity 972/1000 Matter 200/300 Energy 114/150 System Corruption 0% Temperature Cool (5) Movement Hovering (44) Location -5/Factory Parts ------- > --- POWER (1) -------- Micro Nuclear Core > --- PROPULSION (6) --- Airjet Gravmag System Gravmag System Gravmag System Gravmag System Gravmag System > --- UTILITY (8) ------ Large Storage Unit Improved Trap Scanner Seismic Detector Improved Melee Analysis Suite Improved Melee Analysis Suite Core Analyzer ECM Suite Improved Core Shielding > --- WEAPON (2) ------- Mini Grenade Launcher Spear > --- INVENTORY (15) --- Nuclear Core Light Nuclear Core Improved Deuterium Engine Micro Nuclear Core Combat Airjet Combat Airjet Combat Airjet Combat Gravmag System Core Analyzer Core Analyzer Makeshift ECM Suite EM Pulse Cannon Makeshift Hammer Spear Spear Peak State ------------ > --- POWER ------------ Micro Nuclear Core > --- PROPULSION ------- Airjet Gravmag System Gravmag System Gravmag System Gravmag System Gravmag System > --- UTILITY ---------- Large Storage Unit Improved Trap Scanner Seismic Detector Improved Melee Analysis Suite Improved Melee Analysis Suite Core Analyzer ECM Suite Improved Core Shielding > --- WEAPON ----------- Spear Spear > --- INVENTORY -------- Nuclear Core Light Nuclear Core Improved Deuterium Engine Micro Nuclear Core Gravmag System Gravmag System Gravmag System Core Analyzer Core Analyzer Makeshift ECM Suite EM Pulse Cannon Mini Grenade Launcher Makeshift Hammer Spear [Rating: 65] Favorites ----------- Power Ion Engine Engine Ion Engine Power Core Micro Nuclear Core Propulsion Light Treads Treads Light Treads Leg Carbon-fiber Leg Wheel Subdweller Monowheel Hover Unit Gravmag System Utility Large Storage Unit Device Improved Heat Sink Storage Large Storage Unit Processor Core Analyzer Protection Light Armor Plating Weapon Assault Rifle Energy Gun Small Laser Energy Cannon EM Pulse Cannon Ballistic Gun Assault Rifle Launcher Mini Grenade Launcher Piercing Weapon Spear Build | -11 -10 -10 -10 -8 -7 -7 -7 -6 -5 ------- Run | Yrd Mat Min Sub Mat Fac Low Low Fac Fac Slots Evolved 10 | . . . . 4 2 . . 2 2 Power . | . . . . . . . . . . Propulsion 4 | . . . . 3 1 . . . . Utility 6 | . . . . 1 1 . . 2 2 Weapon . | . . . . . . . . . . Parts Attached 59 | 6 3 . 10 20 13 . . 2 5 Power 4 | 1 . . . 1 2 . . . . Engine 2 | 1 . . . . 1 . . . . Core 2 | . . . . 1 1 . . . . Reactor . | . . . . . . . . . . Propulsion 26 | 2 . . 3 10 8 . . . 3 Treads 8 | 2 . . 1 4 1 . . . . Leg 1 | . . . . . 1 . . . . Wheel 3 | . . . 2 . 1 . . . . Hover 14 | . . . . 6 5 . . . 3 Flight . | . . . . . . . . . . Utility 15 | 1 2 . 2 4 2 . . 2 2 Device 6 | . 1 . . 2 1 . . 1 1 Storage 2 | 1 1 . . . . . . . . Processor 3 | . . . . 1 1 . . . 1 Hackware . | . . . . . . . . . . Protection 4 | . . . 2 1 . . . 1 . Artifact . | . . . . . . . . . . Weapon 14 | 2 1 . 5 5 1 . . . . Energy Gun 1 | 1 . . . . . . . . . Energy Cannon 2 | . . . 1 1 . . . . . Ballistic Gun 5 | 1 1 . 3 . . . . . . Ballistic Cannon . | . . . . . . . . . . Launcher 3 | . . . 1 2 . . . . . Special Weapon . | . . . . . . . . . . Impact Weapon . | . . . . . . . . . . Slashing Weapon . | . . . . . . . . . . Piercing Weapon 3 | . . . . 2 1 . . . . Special Melee Weapon . | . . . . . . . . . . Unidentified Prototypes 1 | . . . 1 . . . . . . Parts Lost 17 | . . . 4 2 8 . . . 3 Power 2 | . . . . 1 1 . . . . Propulsion 11 | . . . 3 . 5 . . . 3 Utility 2 | . . . . 1 1 . . . . Weapon 2 | . . . 1 . 1 . . . . Highest Loss Streak 8 | . . . 1 2 8 . . . 3 To Critical Strikes . | . . . . . . . . . . Average Backups 13 | 1 8 15 14 14 13 14 15 15 13 Power 1 | . 1 1 1 . 2 4 4 4 4 Propulsion 1 | . . 1 . 1 2 3 3 3 2 Utility 3 | . 1 3 4 3 3 4 4 4 3 Weapon 7 | . 5 8 9 9 5 3 4 4 4 Tool/Special . | . . . . . . . . . . Unused Backups 25 | . . 1 2 7 5 1 . . 9 Power 4 | . . . 1 . . . . . 3 Propulsion 4 | . . . . . 3 . . . 1 Utility 8 | . . . . 3 1 1 . . 3 Weapon 9 | . . 1 1 4 1 . . . 2 Tool/Special . | . . . . . . . . . . Average Slot Usage (%) 95 | . 97 100 97 94 86 100 100 94 96 Engine 10 | . 14 14 14 3 5 . . . . Core 1 | . . . . 4 1 7 7 6 5 Treads 18 | . 28 28 17 15 10 . . . . Wheel 2 | . . . 7 . 1 . . . . Hover 10 | . . . . 26 20 46 46 40 32 Device 8 | . 11 14 7 2 6 7 7 11 15 Storage 11 | . 14 14 14 9 7 7 7 6 5 Processor 4 | . . . . 3 13 15 15 13 17 Protection 3 | . . . 6 10 . . . 3 5 Ballistic Gun 17 | . 21 28 26 7 . . . . . Piercing Weapon 4 | . . . . 4 14 15 15 13 9 Peak Build Rating 65 | 6 11 11 21 34 50 50 50 60 65 Average Rating 21 | 4 9 11 12 27 40 50 50 57 63 On Entrance 28 | . 6 11 11 13 34 50 50 50 60 Avg Prop Armor Cover (%) 9 | . . . 9 8 11 . . 5 5 Naked Turns . | . . . . . . . . . . Heaviest Build 40 | 13 30 30 39 40 35 31 31 36 38 Greatest Support 108 | 40 40 40 40 108 64 53 53 53 44 Greatest Overweight (x) 3 | 1 . . 3 1 2 . . . . Average Overweight (x) . | . . . . . . . . . . Largest Inventory Capacity 15 | 8 15 15 15 15 15 15 15 15 15 Average Capacity 14 | 7 13 15 15 15 15 15 15 15 15 Most Carried 15 | 2 15 15 15 15 15 15 15 15 15 Average Carried 13 | 1 8 14 14 14 14 14 15 15 13 Final Capacity 15 | 8 15 15 15 15 15 15 15 15 15 Final Carried 15 | 2 15 15 15 15 15 15 15 15 15 Class Distribution -------------------- 77% | Mutant 22% | Scavenger-Gladiator Dominant Class ---------------- Mutant | -10/Materials Mutant | -10/Mines Mutant | -10/Subcaves Mutant | -8/Materials Scavenger-Gladiator | -7/Factory Scavenger-Gladiator | -7/Lower Caves Scavenger-Gladiator | -7/Lower Caves Scavenger-Gladiator | -6/Factory Scavenger-Gladiator | -5/Factory Resources | -11 -10 -10 -10 -8 -7 -7 -7 -6 -5 ----------- Run | Yrd Mat Min Sub Mat Fac Low Low Fac Fac Matter Collected 1325 | 216 176 54 312 373 194 . . . . Remotely . | . . . . . . . . . . Salvage Created 1824 | . 349 138 336 517 342 107 . . 35 Parts 130 | . 27 12 26 31 21 7 . . 6 Haulers Intercepted 3 | . 1 . . 2 . . . . . Recyclers Shooed . | . . . . . . . . . . Parts Field Recycled . | . . . . . . . . . . Retrieved Matter . | . . . . . . . . . . Parts Self-Destructed 26 | . . . 21 . . 5 . . . Prevented . | . . . . . . . . . . Parts Restored . | . . . . . . . . . . Kills | -11 -10 -10 -10 -8 -7 -7 -7 -6 -5 ------- Run | Yrd Mat Min Sub Mat Fac Low Low Fac Fac Combat Hostiles Destroyed 51 | . 8 5 13 11 5 4 . . 5 Melee 9 | . . . . . 5 4 . . . Guns 26 | . 8 5 10 3 . . . . . Cannons 4 | . . . . 4 . . . . . AOE 12 | . . . 3 4 . . . . 5 Classes Destroyed 11 | . 4 . 2 4 1 . . . . Builder 1 | . . . . 1 . . . . . Hauler 3 | . 1 . . 2 . . . . . Recycler 3 | . . . . 1 2 . . . . Operator 1 | . . . . 1 . . . . . Watcher 3 | . 2 . . 1 . . . . . Swarmer 25 | . 3 3 4 6 1 3 . . 5 Grunt 13 | . 5 2 1 4 . 1 . . . Brawler 2 | . . . . 1 1 . . . . Sentry 1 | . . . 1 . . . . . . Programmer 3 | . . . . . 3 . . . . Subdweller 7 | . . . 7 . . . . . . Best Kill Streak 8 | . 8 3 3 5 2 3 . . 5 Combat Bots Only 7 | . 7 3 3 5 1 3 . . 5 Max Kills in Single Turn 3 | . 1 1 3 2 1 1 . . 3 Gunslinging . | . . . . . . . . . . Exploded 3 | . . . 3 2 . . . . 3 Melee 1 | . . . . . 1 1 . . . Uniques/NPCs Destroyed . | . . . . . . . . . . Combat | -11 -10 -10 -10 -8 -7 -7 -7 -6 -5 -------- Run | Yrd Mat Min Sub Mat Fac Low Low Fac Fac Hostile Shots Fired 281 | . 42 20 47 49 80 17 4 . 22 Missed 90 | . 16 8 10 16 23 8 2 . 7 Hits 191 | . 26 12 37 33 57 9 2 . 15 Melee 16 | . . . . . 16 . . . . Projectile 175 | . 26 12 37 33 41 9 2 . 15 Critical Strikes 7 | . 1 . 3 1 2 . . . . Part Disruptions 1 | . . . . . 1 . . . . Damage Taken 2398 | . 225 92 520 267 948 79 25 . 242 Core 622 | . 12 5 72 31 409 53 12 . 28 Absorbed by Shields . | . . . . . . . . . . Redirected to Shielding 11 | . . . . . . . . . 11 Ignored by Resistances 692 | . 72 29 150 84 259 23 7 . 68 Core Remaining (%) 78 | 100 . . 64 94 . . 32 100 . Volleys Fired 100 | . 30 9 31 27 . . . . 3 Largest 2 | . 2 2 2 2 . . . . 1 Hottest 86 | . 60 40 80 86 . . . . 30 Shots Fired 175 | . 52 18 59 43 . . . . 3 Gun 147 | . 52 18 55 22 . . . . . Cannon 19 | . . . 2 17 . . . . . Launcher 9 | . . . 2 4 . . . . 3 Special . | . . . . . . . . . . Kinetic 129 | . 34 18 55 22 . . . . . Thermal 20 | . 18 . 2 . . . . . . Explosive 9 | . . . 2 4 . . . . 3 Electromagnetic 17 | . . . . 17 . . . . . Robot Hit Streak 49 | . 8 9 49 12 . . . . 3 Robot Miss Streak 3 | . 1 1 3 3 . . . . 1 Penetration Max . | . . . . . . . . . . Secondary Targets 4 | . . 3 1 . . . . . . Max Gunslinging Chain 1 | . . 1 1 . . . . . . Shots Hit Robots 178 | . 39 14 49 40 30 4 . . 2 Core Hits 97 | . 19 8 24 25 9 4 . . 8 Critical Kills . | . . . . . . . . . . Critical Parts Destroyed . | . . . . . . . . . . Critical Strikes 10 | . . . 1 2 7 . . . . Destroy 1 | . . . 1 . . . . . . Impale 9 | . . . . 2 7 . . . . Melee Attacks 51 | . . . . 11 35 4 . . 1 Impact . | . . . . . . . . . . Slashing . | . . . . . . . . . . Piercing 51 | . . . . 11 35 4 . . 1 Sneak Attacks 7 | . . . . 5 2 . . . . Combat Hostiles . | . . . . . . . . . . Follow-up Attacks 5 | . . . . . 5 . . . . Damage Inflicted 4301 | . 478 166 952 1237 879 136 . . 453 Guns 1589 | . 478 166 713 232 . . . . . Cannons 258 | . . . . 258 . . . . . Explosions 1000 | . . . 239 308 . . . . 453 Melee 1454 | . . . . 439 879 136 . . . Ramming . | . . . . . . . . . . Kinetic 1404 | . 293 166 713 232 . . . . . Thermal 185 | . 185 . . . . . . . . Explosive 1000 | . . . 239 308 . . . . 453 Electromagnetic 258 | . . . . 258 . . . . . Impact . | . . . . . . . . . . Slashing . | . . . . . . . . . . Piercing 1454 | . . . . 439 879 136 . . . Highest Corruption 6 | . . . . . 6 6 6 . . Average Corruption 5 | . . . . . 5 6 6 . . Corruption Purged . | . . . . . . . . . . Corruption Blocked . | . . . . . . . . . . Effects 20 | . . . . . 14 6 . . . Message Errors 3 | . . . . . 2 1 . . . Matter Fused 3 | . . . . . 2 1 . . . Heat Flow Errors 5 | . . . . . 2 3 . . . Energy Discharges 5 | . . . . . 5 . . . . Data Loss (minor) 3 | . . . . . 3 . . . . Data Loss (major) 1 | . . . . . . 1 . . . Overload Shots . | . . . . . . . . . . Overflow Damage 219 | . . . . 53 152 . . . 14 Projectiles 2 | . . . . 2 . . . . . Explosions 14 | . . . . . . . . . 14 Melee 203 | . . . . 51 152 . . . . Knockbacks . | . . . . . . . . . . Impact . | . . . . . . . . . . Kinetic . | . . . . . . . . . . Secondary . | . . . . . . . . . . Self-Inflicted Damage 43 | . . . . . . . . . 43 Shots 3 | . . . . . . . . . 3 Rammed 1 | . . . . . 1 . . . . Targets Rammed 1 | . . . . . 1 . . . . Kicked . | . . . . . . . . . . Crushed . | . . . . . . . . . . Highest Temperature 258 | . 75 . 175 258 143 128 15 . . Average Temperature 72 | . 45 . 50 101 68 64 10 . . Received Heat Transfer 679 | . 147 27 307 90 9 27 18 . 54 Effects 1 | . . . . 1 . . . . . Energy Bleed 1 | . . . . 1 . . . . . Siege Activations . | . . . . . . . . . . Martial Activations . | . . . . . . . . . . Shielding Activations . | . . . . . . . . . . Robots Disrupted . | . . . . . . . . . . Combat Hostiles . | . . . . . . . . . . Robots Corrupted . | . . . . . . . . . . Combat Hostiles . | . . . . . . . . . . Parts Fried 2 | . . . . 2 . . . . . Impact Corruptions . | . . . . . . . . . . Robots Melted . | . . . . . . . . . . Combat Hostiles . | . . . . . . . . . . Parts Melted 1 | . . . 1 . . . . . . Heat Transferred 425 | . 425 . . . . . . . . Parts Sabotaged . | . . . . . . . . . . Parts Stolen . | . . . . . . . . . . Parts Stripped . | . . . . . . . . . . Power Chain Reactions . | . . . . . . . . . . Alert | -11 -10 -10 -10 -8 -7 -7 -7 -6 -5 ------- Run | Yrd Mat Min Sub Mat Fac Low Low Fac Fac Maximum Alert Level . | . . . . . . . . . . Low Security (%) 100 | 100 100 100 . 100 100 . . 100 100 Level 1 . | . . . . . . . . . . Level 2 . | . . . . . . . . . . Level 3 . | . . . . . . . . . . Level 4 . | . . . . . . . . . . Level 5 . | . . . . . . . . . . High Security . | . . . . . . . . . . Max Security . | . . . . . . . . . . Peak Influence 179 | . 143 70 . 179 140 . . 76 97 Initial 74 | . . . . 22 59 . . 74 31 Average 44 | . 55 8 . 123 25 . . 74 36 Influence Increases 1548 | . 252 120 130 370 308 230 . 12 126 Destroy 0b10 Robot/C 880 | . 160 100 120 220 100 80 . . 100 Destroy 0b10 Robot/NC 55 | . 15 . . 30 10 . . . . Destroy Leader 152 | . 36 20 10 46 30 . . . 10 Successful Hack 73 | . 40 . . 7 14 . . 12 . Destroy Structure 43 | . 1 . . 22 4 . . . 16 Partial Spotted 30 | . . . . 30 . . . . . Lose Combat Pursuer 315 | . . . . 15 150 150 . . . Influence Decreases 1461 | . 252 120 80 268 350 150 54 72 115 Entered New Map 332 | . . . . 28 93 50 54 62 45 Time Decay 1000 | . 252 120 60 220 198 100 . 10 40 Lost Part 129 | . . . 20 20 59 . . . 30 Squads Dispatched 4 | . 1 . . 1 2 . . . . Investigation 1 | . 1 . . . . . . . . Extermination 2 | . . . . . 2 . . . . Reinforcement 1 | . . . . 1 . . . . . Assault . | . . . . . . . . . . Garrison . | . . . . . . . . . . Intercept . | . . . . . . . . . . Searches Triggered . | . . . . . . . . . . Construction Impeded . | . . . . . . . . . . Haulers Reinforced . | . . . . . . . . . . Active Scanning Responses . | . . . . . . . . . . Cargo Convoy Interrupts . | . . . . . . . . . . Stealth | -11 -10 -10 -10 -8 -7 -7 -7 -6 -5 --------- Run | Yrd Mat Min Sub Mat Fac Low Low Fac Fac Distress Signals 1 | . . . . 1 . . . . . Communications Jammed . | . . . . . . . . . . Distress Signals . | . . . . . . . . . . Times Spotted 92 | . 11 5 13 19 18 10 4 . 12 Peak Tracking Total 10 | . 3 3 3 5 4 10 4 . 7 Tactical Retreats 10 | . . . . 1 4 4 . . 1 ECM-based Alert Blocks 7 | . . . . 3 . . . . 4 Traps | -11 -10 -10 -10 -8 -7 -7 -7 -6 -5 ------- Run | Yrd Mat Min Sub Mat Fac Low Low Fac Fac Traps Triggered 3 | . 1 . . . 2 . . . . Indirectly . | . . . . . . . . . . Trap Hack Attempts . | . . . . . . . . . . Triggered . | . . . . . . . . . . Disarmed . | . . . . . . . . . . Reprogrammed . | . . . . . . . . . . Reused 1 | . . . . . . 1 . . . Traps Extracted . | . . . . . . . . . . Installed 2 | . . . . . . 2 . . . Triggered 1 | . . . . . . 1 . . . Most Traps Carried 1 | . . . . . . 1 . . . Machines | -11 -10 -10 -10 -8 -7 -7 -7 -6 -5 ---------- Run | Yrd Mat Min Sub Mat Fac Low Low Fac Fac Machines Disabled . | . . . . . . . . . . Max in Single Turn . | . . . . . . . . . . Machines Repaired . | . . . . . . . . . . Machines Dismantled . | . . . . . . . . . . Machines Sabotaged . | . . . . . . . . . . Overloaded Fab Kills . | . . . . . . . . . . Hacking | -11 -10 -10 -10 -8 -7 -7 -7 -6 -5 --------- Run | Yrd Mat Min Sub Mat Fac Low Low Fac Fac Machines Accessed 13 | . 6 1 . 2 2 1 . 1 . Terminals 10 | . 6 . . 2 1 . . 1 . Fabricators 1 | . . . . . 1 . . . . Repair Stations . | . . . . . . . . . . Recycling Units . | . . . . . . . . . . Scanalyzers . | . . . . . . . . . . Garrison Access . | . . . . . . . . . . Total Hacks 20 | . 9 1 . 5 2 1 . 2 . Successful 12 | . 5 1 . 2 2 1 . 1 . Failed 8 | . 4 . . 3 . . . 1 . Catastrophic 2 | . 2 . . . . . . . . Database Lockouts . | . . . . . . . . . . Manual 3 | . . . . 3 . . . . . Terminals 17 | . 9 . . 5 1 . . 2 . Fabricators 1 | . . . . . 1 . . . . Repair Stations . | . . . . . . . . . . Recycling Units . | . . . . . . . . . . Scanalyzers . | . . . . . . . . . . Garrison Access . | . . . . . . . . . . Terminal Hacks 11 | . 5 1 . 2 1 1 . 1 . Record 1 | . 1 . . . . . . . . Prototype ID Bank 1 | . . . . . . . . 1 . Open Door 2 | . . 1 . . . 1 . . . Level Access Points 1 | . 1 . . . . . . . . Branch Access Points 2 | . . . . 1 1 . . . . Emergency Access Points 1 | . . . . 1 . . . . . Alert Level 1 | . 1 . . . . . . . . Zone Layout 2 | . 2 . . . . . . . . Fabricator Hacks 1 | . . . . . 1 . . . . Build 1 | . . . . . 1 . . . . Repair Station Hacks . | . . . . . . . . . . Recycling Unit Hacks . | . . . . . . . . . . Scanalyzer . | . . . . . . . . . . Garrison Access Hacks . | . . . . . . . . . . Unauthorized Hacks . | . . . . . . . . . . Terminals . | . . . . . . . . . . Fabricators . | . . . . . . . . . . Repair Stations . | . . . . . . . . . . Recycling Units . | . . . . . . . . . . Scanalyzers . | . . . . . . . . . . Garrison Access . | . . . . . . . . . . Data Cores Recovered . | . . . . . . . . . . Used . | . . . . . . . . . . Hacking Detections 4 | . 2 . . 1 . . . 1 . Full Trace Events . | . . . . . . . . . . Feedback Events . | . . . . . . . . . . Feedback Blocked . | . . . . . . . . . . Robot Schematics Acquired . | . . . . . . . . . . Robots Built 2 | . . . . . 2 . . . . Authchips . | . . . . . . . . . . Time 134 | . . . . . 134 . . . . Total Robot Build Rating 8 | . . . . . 8 . . . . Part Schematics Acquired . | . . . . . . . . . . Parts Built . | . . . . . . . . . . Authchips . | . . . . . . . . . . Time . | . . . . . . . . . . Total Part Build Rating . | . . . . . . . . . . Part Studies Acquired . | . . . . . . . . . . Parts Repaired . | . . . . . . . . . . Time . | . . . . . . . . . . Parts Recycled . | . . . . . . . . . . Recycled Matter . | . . . . . . . . . . Retrieved Matter . | . . . . . . . . . . Retrieved Components . | . . . . . . . . . . Parts Scanalyzed . | . . . . . . . . . . Part Schematics Acquired . | . . . . . . . . . . Parts Damaged . | . . . . . . . . . . Bothacking | -11 -10 -10 -10 -8 -7 -7 -7 -6 -5 ------------ Run | Yrd Mat Min Sub Mat Fac Low Low Fac Fac Used RIF Installer . | . . . . . . . . . . Robots Hacked . | . . . . . . . . . . Non-combat . | . . . . . . . . . . Combat . | . . . . . . . . . . Robot Hacks Applied . | . . . . . . . . . . Relay Couplers Released . | . . . . . . . . . . Fabnet Peak Effective % . | . . . . . . . . . . Robots Rewired . | . . . . . . . . . . Allies Hacked . | . . . . . . . . . . Hacks Repelled . | . . . . . . . . . . Allies | -11 -10 -10 -10 -8 -7 -7 -7 -6 -5 -------- Run | Yrd Mat Min Sub Mat Fac Low Low Fac Fac Total Allies 2 | . . . . . 2 . . . . Largest Group 2 | . . . . . 2 . . . . Highest-Rated Group 80 | . . . . . 80 . . . . Highest-Rated Ally 40 | . . . . . 40 . . . . Total Orders . | . . . . . . . . . . Ally Attacks 5 | . . . . . 5 . . . . Total Damage 142 | . . . . . 142 . . . . Kills . | . . . . . . . . . . Allies Corrupted . | . . . . . . . . . . Allies Melted . | . . . . . . . . . . Intel | -11 -10 -10 -10 -8 -7 -7 -7 -6 -5 ------- Run | Yrd Mat Min Sub Mat Fac Low Low Fac Fac Active Infowar (turns) 1028 | . . . . 64 626 204 15 39 80 Traps 117 | . . . . . . . . 37 80 Seismic 884 | . . . . . 546 204 15 39 80 ECM 184 | . . . . 64 80 . . . 40 Robot Analysis Total . | . . . . . . . . . . Derelict Logs Recovered 5 | . . 1 3 . . 1 . . . Drone Launches . | . . . . . . . . . . Drone Recoveries . | . . . . . . . . . . Exploration | -11 -10 -10 -10 -8 -7 -7 -7 -6 -5 ------------- Run | Yrd Mat Min Sub Mat Fac Low Low Fac Fac Turns Passed 3958 | 65 589 784 1084 451 647 204 15 39 80 Spaces Moved 3138 | 36 306 461 680 320 655 430 38 82 130 Core 3 | 3 . . . . . . . . . Treads 1265 | 33 306 461 233 115 117 . . . . Legs 2 | . . . . . 2 . . . . Wheels 468 | . . . 447 21 . . . . . Hover 1400 | . . . . 184 536 430 38 82 130 Flight . | . . . . . . . . . . Fastest Speed 40 | 50 160 160 120 44 40 40 40 40 44 Average Speed 106 | 153 160 160 142 89 78 40 40 43 44 Slowest Speed 240 | 160 160 160 240 152 236 40 40 44 44 Overloaded Moves . | . . . . . . . . . . Propulsion Burnouts . | . . . . . . . . . . Robots Hopped . | . . . . . . . . . . Potential Cave-ins . | . . . . . . . . . . Cave-ins Triggered . | . . . . . . . . . . Exploration Rate (%) 34 | 4 70 87 47 39 18 62 15 3 4 Regions Visited 9 Branch Regions 4 Pre-discovered Areas 1 | . . . . . . 1 . . . Known Exits Taken 2 | . . 1 . . 1 . . . . Unknown Exits Taken 7 | 1 1 . 1 1 . 1 1 1 . Scrap Searched 4 | . . 2 . . . 2 . . . Spaces Dug 4 | . . . . . 4 . . . . Terrain Destroyed 45 | . . . 12 23 4 . . . 6 Melee 4 | . . . . . 4 . . . . Projectile . | . . . . . . . . . . AOE 41 | . . . 12 23 . . . . 6 Terrain Rammed . | . . . . . . . . . . Walls Destroyed . | . . . . . . . . . . Machines Disabled . | . . . . . . . . . . Actions | -11 -10 -10 -10 -8 -7 -7 -7 -6 -5 --------- Run | Yrd Mat Min Sub Mat Fac Low Low Fac Fac Total 3498 | 43 352 491 737 420 731 457 37 83 147 Wait 52 | . 2 18 3 6 6 14 . . 3 Move 3129 | 35 305 460 679 319 654 429 37 81 130 Hop . | . . . . . . . . . . Pick Up 60 | 2 12 2 8 16 12 4 . . 4 Fast Attach 30 | 6 1 . 2 7 11 . . 2 1 Attach 16 | . . . 2 4 6 . . . 4 Detach . | . . . . . . . . . . Swap 25 | . 2 . 7 14 1 . . . 1 Drop 39 | . . 2 5 17 11 4 . . . Fire 100 | . 30 9 31 27 . . . . 3 Melee 44 | . . . . 10 29 4 . . 1 Ram 1 | . . . . . 1 . . . . Kick . | . . . . . . . . . . Crush . | . . . . . . . . . . Escape Stasis . | . . . . . . . . . . Rewire . | . . . . . . . . . . Trap 2 | . . . . . . 2 . . . Miscellaneous . | . . . . . . . . . . Route ------- -11/Scrapyard -10/Materials (discovered 4 exits: *Mat x3 / *Min) -10/Mines (discovered 3 exits: *Mat x2 / *Sub) -10/Subcaves -8/Materials -7/Factory (discovered 4 exits: *Sto x2 / *Low x2) -7/Lower Caves -7/Lower Caves -6/Factory -5/Factory History --------- Turn | Location | Event 23 | -11/Scrapyard | Discovered new exit (range 15) 66 | -11/Scrapyard | Entered Materials 67 | -10/Materials | Met a group of wandering Federalists 188 | -10/Materials | Destroyed 7 combat bots 192 | -10/Materials | Identified exit to Materials 315 | -10/Materials | Build established: Mutant 647 | -10/Materials | Discovered new exit (range 6) 655 | -10/Materials | Entered Mines 743 | -10/Mines | Found a Scrap Suit stashed away for nefarious purposes 854 | -10/Mines | Discovered exit to Materials (range 13) 890 | -10/Mines | Found the Drone Emporium 920 | -10/Mines | Discovered exit to Materials (range 16) 1223 | -10/Mines | Identified exit to Subcaves 1439 | -10/Mines | Entered Subcaves 1573 | -10/Subcaves | Shifting Twisted Machinery released Mak. Hammer 1612 | -10/Subcaves | Shifting Twisted Machinery released Mak. System Restoration Module 1708 | -10/Subcaves | Shifting Twisted Machinery released Sub. Beam Cannon 1969 | -10/Subcaves | A Subdweller sparked back to life 1969 | -10/Subcaves | A Subdweller sparked back to life 1969 | -10/Subcaves | A Subdweller sparked back to life 1986 | -10/Subcaves | Shifting Twisted Machinery released Sub. Laser 2002 | -10/Subcaves | Found Prototype Protection 2003 | -10/Subcaves | Identified Gun Armor 2004 | -10/Subcaves | Attached Gun Armor, gained temporary slots: Weapon x2 2022 | -10/Subcaves | Shifting Twisted Machinery released Flamer 2082 | -10/Subcaves | Learned Materials terminal intel 2231 | -10/Subcaves | A swath of the cavern ceiling suddenly collapsed 2348 | -10/Subcaves | Discovered new exit (range 5) 2523 | -10/Subcaves | Entered Materials 2523 | -8/Materials | Evolved 4 slots: Propulsion x3, Utility x1 2524 | -8/Materials | Loaded intel: 12 terminal locations 2966 | -8/Materials | Discovered new exit (range 16) 2974 | -8/Materials | Entered Factory 2974 | -7/Factory | Evolved 2 slots: Propulsion x1, Utility x1 2975 | -7/Factory | Identified exit to Storage 3057 | -7/Factory | Core integrity fell below 50% 3072 | -7/Factory | Lost 8 parts (1p5n1u1w) 3285 | -7/Factory | Fabricated X-62 Marksman? 3361 | -7/Factory | Build established: Scavenger-Gladiator 3544 | -7/Factory | Identified exit to Lower Caves 3621 | -7/Factory | Entered Lower Caves 3649 | -7/Lower Caves | Spotted B-75 Beast 3743 | -7/Lower Caves | Encountered a Warlord checkpoint 3822 | -7/Lower Caves | Discovered new exit (range 9) 3825 | -7/Lower Caves | Entered another Lower Caves area 3835 | -7/Lower Caves | Attracted the attention of an 0b10 base 3837 | -7/Lower Caves | Discovered new exit (range 8) 3840 | -7/Lower Caves | Entered Factory 3840 | -6/Factory | Evolved 2 slots: Utility x2 3872 | -6/Factory | Discovered new exit (range 16) 3879 | -6/Factory | Entered another Factory area 3879 | -5/Factory | Evolved 2 slots: Utility x2 3959 | -5/Factory | Self-destructed Last Messages --------------- 03872_ EXIT=FOUND PARAMETERS=UTILITY+2 LOCATION=UNKNOWN GOAL=ESCAPE 03890_ K-01 Serf collects debris. 03890_ Acquired ECM Suite. 03916_ ALERT: All DSF locations entering lockdown mode. 03930_ Imp. Trap Scanner disarmed Shock Trap. 03933_ Gravmag System destroyed. 03934_ S-27 Virus destroyed. 03934_ Destroyed VTOL Module. 03934_ Destroyed Lgt. Nuclear Core. 03936_ S-27 Virus destroyed. 03936_ Gravmag System destroyed. 03936_ Destroyed Gravmag System. 03936_ Gravmag System destroyed. 03936_ Destroyed Gravmag System. 03944_ Acquired Cmb. Gravmag System. 03951_ S-27 Virus destroyed. 03953_ Acquired Cmb. Airjet. Map ----- +----------------------------------------------------+ | ?????????????????????????????????????????? | | ?????????????????????????????????????????? | | ?????????????????????????????????????????? | | ?????????????????????????????????????????? | | ?????????????????????????????????????????? | | ?????????????????????????????????????????? | | ?????????????????????????????????????????? | | ?????????????????????????????????????????? | | ?????????????????????????????????????????? | | ?????????????????????????????????????????? | | ?????????????????????????????????????????? | | ?????????????????????????????????????????? | | ?????????????????????????????????????????? | | ?????????????????????????????????????????? | | ?????????????????????????????????????????? | | ?????????????????????????????????????????? | | ?????????????????????????????????????????? | | ?????????????????????????????????????????? | | ?????????????????????????????????????????? | | ?????????????????????????????????????????? | | ?????????????????????????????????????????? | | ?????????????????????????????????????????? | | ?????????????????????????????????????????? | | ?????????????????????????????????????????? | | ???????????????##############????????????? | | ???????????????# = @ #????????????? | | ???????????????#[ """ #????????????? | | ???????????????# """"" #????????????? | | ???????????????# """"" #????????????? | | ???????????????# #????????????? | | ???????????????# [[ #????????????? | | ???????????????# [ ! #????????????? | | ???????????????# [ #????????????? | | ???????????????# #????????????? | | ???????????????# #???????????? | | ???????????????# ##???????????? | | ???????????????# #???????????? | | ??????????????########+ ####????????? | | ?????????????+ #????????? | | ???????????????????# #????????? | | ???????????????????# """ +????????? | | ???????????????????# ""T"" | #????????? | | ???????????????????# "" ""[ #????????? | | ???????????????????#^ = * #????????? | | ??/######/########## %%* #????????? | | ?? [ #????????? | | ? = #????????? | | ? #????????? | | ? #????????? | | ? """" #????????? | +----------------------------------------------------+ Best States ------------- Heat Dissipation 40 Coolant Potential 50 Energy Generation 16 Energy Capacity 290 Matter Stores 300 Matter Capacity 300 Sight Range 16 Terrain Scan Density 10 ECM Strength 1 Armor Coverage 300 Resistance: KI 20 Resistance: TH 20 Resistance: EX 20 Resistance: EM 20 Resistance: I 20 Resistance: S 20 Resistance: P 20 Core Shielding 30 Evasion (%) 57 Melee Accuracy 12 Core Analysis 6 Recoil Reduction 5 Offensive Hacking 10 Item Schematics ----------------- None Robot Schematics ------------------ None Fabricated ------------ X-62 Marksman | x2 | -7/Factory | Preloaded Repaired ---------- Nothing Studied --------- None Alien Tech Used ----------------- None Achievements -------------- None Challenges ------------ None Game ------ Seed HardenedCloakKatana Manual? 0 Play Time 00:41:26 Cumulative 76.8 hours Start 2026.07.16 @ 15:42:12 End 2026.07.22 @ 13:37:30 Sessions 3 Manual Loads 0 Difficulty Adventurer Special Mode None Game No. 68 Rogue 0 Adventurer 68 Explorer 0 Win Type - Total 2 Types 1/0/0/1/0/0/0/0/0/0 Lore% 34 Gallery% 45 Achievement% 39 Wizard Run 0 Options --------- Layout 0 ASCII 0 Keyboard 0 Movement Numpad Keybinds 0 Fullscreen 0 Font 16/SmallcapsGlow Map View 76x50 Zoom Use 0% Tactical HUD 1 Map Filters NONE Filters NONE Steam 1 RUN: 15cc67d6-0e72-4d22-abe9-0b753361b187